fUST/lending_fUST_20250302
["ID","MTS","AMOUNT","RATE_DAILY","PERIOD"]
[354974577,1740852633921,-500.0,0.00025549,2]
[354974578,1740852633931,-500.0,0.00025549,2]
[354974579,1740852633941,-500.0,0.00025549,2]
[354974580,1740852633951,-500.0,0.00025549,2]
[354974581,1740852633962,-500.0,0.00025549,2]
[354974582,1740852633972,-311.59258606,0.00025549,2]
[354974583,1740852633983,-500.0,0.00025549,2]
[354974584,1740852633994,-500.0,0.00025549,2]
[354974585,1740852634004,-500.0,0.00025549,2]
[354974586,1740852634014,-500.0,0.00025549,2]
[354974587,1740852634024,-500.0,0.00025549,2]
[354974588,1740852634035,-2704.83,0.00025549,2]
[354974589,1740852634045,-500.0,0.00025549,2]
[354974590,1740852634055,-500.0,0.00025549,2]
[354974591,1740852634065,-500.0,0.00025549,2]
[354974592,1740852634075,-500.0,0.00025549,2]
[354974593,1740852634085,-500.0,0.00025549,2]
[354974594,1740852634095,-500.0,0.00025549,2]
[354974595,1740852634106,-500.0,0.00025549,2]
[354974596,1740852634116,-500.0,0.00025549,2]
[354974597,1740852634126,-500.0,0.00025549,2]
[354974598,1740852634136,-500.0,0.00025549,2]
[354974599,1740852634148,-500.0,0.00025549,2]
[354974600,1740852634158,-500.0,0.00025549,2]
[354974601,1740852634168,-500.0,0.00025549,2]
[354974602,1740852634178,-500.0,0.00025549,2]
[354974603,1740852634188,-500.0,0.00025549,2]
[354974604,1740852634198,-500.0,0.00025549,2]
[354974605,1740852634208,-649.24067591,0.00025549,2]
[354974606,1740852634218,-500.0,0.00025549,2]
[354974607,1740852634230,-500.0,0.00025549,2]
[354974608,1740852634240,-500.0,0.00025549,2]
[354974609,1740852634249,-500.0,0.00025549,2]
[354974610,1740852634259,-500.0,0.00025549,2]
[354974611,1740852634270,-500.0,0.00025549,2]
[354974612,1740852634280,-500.0,0.00025549,2]
[354974613,1740852634289,-500.0,0.00025549,2]
[354974614,1740852634301,-500.0,0.00025549,2]
[354974615,1740852634311,-500.0,0.00025549,2]
[354974616,1740852634321,-500.0,0.00025549,2]
[354974617,1740852634331,-321.48334789,0.00025549,2]
[354974618,1740852634341,-500.0,0.00025549,2]
[354974619,1740852634350,-500.0,0.00025549,2]
[354974620,1740852634360,-500.0,0.00025549,2]
[354974621,1740852634370,-500.0,0.00025549,2]
[354974622,1740852634380,-500.0,0.00025549,2]
[354974623,1740852634390,-500.0,0.00025549,2]
[354974624,1740852634400,-500.0,0.00025549,2]
[354974625,1740852634411,-500.0,0.00025549,2]
[354974626,1740852634421,-500.0,0.00025549,2]
[354974627,1740852634431,-500.0,0.00025549,2]
[354974628,1740852634442,-500.0,0.00025549,2]
[354974629,1740852634451,-500.0,0.00025549,2]
[354974630,1740852634461,-500.0,0.00025549,2]
[354974631,1740852634471,-500.0,0.00025549,2]
[354974632,1740852634481,-500.0,0.00025549,2]
[354974633,1740852634491,-500.0,0.00025549,2]
[354974634,1740852634502,-500.0,0.00025549,2]
[354974635,1740852634512,-500.0,0.00025549,2]
[354974636,1740852634522,-500.0,0.00025549,2]
[354974637,1740852634532,-500.0,0.00025549,2]
[354974638,1740852634542,-1000.0,0.00025549,5]
[354974639,1740852634551,-1061.28,0.00025549,2]
[354974640,1740852634560,-500.0,0.00025549,2]
[354974641,1740852634570,-500.0,0.00025549,2]
[354974642,1740852634580,-928.86,0.00025549,2]
[354974643,1740852634589,-901.34,0.00025549,2]
[354974644,1740852634599,-500.0,0.00025549,2]
[354974645,1740852634609,-756.95,0.00025549,2]
[354974646,1740852634619,-500.0,0.00025549,2]
[354974647,1740852634628,-1590.81,0.00025549,2]
[354974648,1740852634638,-235.80843096,0.00025549,2]
[354974649,1740852634647,-500.0,0.00025549,2]
[354974650,1740852634658,-496.47810261,0.00025549,2]
[354974651,1740852634668,-171.37866518,0.00025549,2]
[354974652,1740852634699,-328.62133482,0.00025549,2]
[354974653,1740852634709,-692.61,0.0002555,2]
[354974654,1740852634719,-692.61,0.0002555,2]
[354974655,1740852634729,-692.61,0.0002555,2]
[354974656,1740852634740,-700.76,0.0002555,2]
[354974657,1740852634750,-700.76,0.0002555,2]
[354974658,1740852634759,-700.76,0.0002555,2]
[354974659,1740852634769,-500.0,0.0002555,2]
[354974660,1740852634779,-609.6,0.0002555,2]
[354974661,1740852634789,-3544.53,0.0002555,2]
[354974662,1740852634798,-500.0,0.0002555,2]
[354974663,1740852634808,-500.0,0.0002555,2]
[354974664,1740852634817,-500.0,0.0002555,2]
[354974665,1740852634827,-500.0,0.0002555,2]
[354974666,1740852634838,-1245.26,0.0002555,2]
[354974667,1740852634847,-500.0,0.0002555,2]
[354974668,1740852634857,-9298.83675398,0.0002555,2]
[354974724,1740852638574,-500.0,0.00025549,2]
[354974726,1740852638584,-3815.78324602,0.0002555,2]
[354974728,1740852638594,-1183.31,0.0002555,2]
[354974730,1740852638604,-1183.31,0.0002555,2]
[354974732,1740852638614,-1183.31,0.0002555,2]
[354974734,1740852638624,-500.0,0.0002555,2]
[354974736,1740852638634,-6634.82,0.0002555,2]
[354974738,1740852638644,-4285.24,0.0002555,2]
[354974740,1740852638653,-5569.82,0.0002555,2]
[354974742,1740852638663,-1726.86,0.0002555,2]
[354974744,1740852638673,-500.0,0.0002555,2]
[354974746,1740852638683,-1264.87,0.0002555,2]
[354974748,1740852638692,-2964.03,0.0002555,2]
[354974750,1740852638702,-500.0,0.0002555,2]
[354974752,1740852638712,-2951.38,0.0002555,2]
[354974755,1740852638721,-500.0,0.0002555,2]
[354974757,1740852638731,-500.0,0.0002555,2]
[354974759,1740852638741,-5269.69,0.0002555,2]
[354974761,1740852638751,-9493.32,0.0002555,2]
[354974765,1740852638762,-500.0,0.0002555,2]
[354974766,1740852638771,-549.95,0.0002555,2]
[354974768,1740852638781,-500.0,0.0002555,2]
[354974770,1740852638790,-500.0,0.0002555,2]
[354974772,1740852638800,-1900.21,0.0002555,2]
[354974774,1740852638810,-500.0,0.0002555,2]
[354974776,1740852638819,-3068.32,0.0002555,2]
[354974778,1740852638829,-692.61,0.00025551,2]
[354974780,1740852638839,-700.76,0.00025551,2]
[354974782,1740852638849,-1183.31,0.00025551,2]
[354974784,1740852638858,-500.0,0.00025552,2]
[354974787,1740852638868,-500.0,0.00025552,2]
[354974789,1740852638877,-500.0,0.00025552,2]
[354974790,1740852638887,-500.0,0.00025552,2]
[354974791,1740852638897,-500.0,0.00025552,2]
[354974792,1740852638907,-500.0,0.00025552,2]
[354974793,1740852638917,-500.0,0.00025552,2]
[354974794,1740852638927,-500.0,0.00025552,2]
[354974795,1740852638937,-500.0,0.00025552,2]
[354974796,1740852638947,-933.78,0.00025552,2]
[354974797,1740852638957,-509.68,0.00025552,2]
[354974798,1740852638966,-505.61208101,0.00025552,2]
[354974799,1740852638976,-500.0,0.00025552,2]
[354974800,1740852638985,-500.0,0.00025552,2]
[354974801,1740852638995,-500.0,0.00025552,2]
[354974802,1740852639005,-500.0,0.00025552,2]
[354974803,1740852639015,-738.45,0.00025552,2]
[354974804,1740852639027,-763.4,0.00025552,2]
[354974805,1740852639037,-500.0,0.00025552,2]
[354974806,1740852639047,-500.0,0.00025552,2]
[354974807,1740852639056,-500.0,0.00025552,2]
[354974808,1740852639066,-500.0,0.00025552,2]
[354974809,1740852639076,-500.0,0.00025552,2]
[354974810,1740852639085,-500.0,0.00025552,2]
[354974811,1740852639095,-500.0,0.00025552,2]
[354974813,1740852639105,-500.0,0.00025552,2]
[354974815,1740852639115,-500.0,0.00025552,2]
[354974817,1740852639125,-500.0,0.00025552,2]
[354974819,1740852639135,-500.0,0.00025552,2]
[354974821,1740852639144,-512.87,0.00025552,2]
[354974823,1740852639153,-509.21389996,0.00025552,2]
[354974824,1740852639163,-500.0,0.00025552,2]
[354974826,1740852639173,-500.0,0.00025552,2]
[354974828,1740852639183,-1382.1,0.00025552,2]
[354974830,1740852639193,-500.0,0.00025552,2]
[354974832,1740852639202,-1497.33,0.00025552,2]
[354974834,1740852639212,-751.65,0.00025552,2]
[354974836,1740852639223,-507.38659911,0.00025552,2]
[354974838,1740852639237,-500.0,0.00025552,2]
[354974840,1740852639247,-500.0,0.00025552,2]
[354974842,1740852639258,-500.0,0.00025552,2]
[354974844,1740852639267,-500.0,0.00025552,2]
[354974846,1740852639277,-500.0,0.00025552,2]
[354974848,1740852639287,-500.0,0.00025552,2]
[354974850,1740852639296,-500.0,0.00025552,2]
[354974852,1740852639308,-500.0,0.00025552,2]
[354974854,1740852639317,-500.0,0.00025552,2]
[354974856,1740852639327,-500.0,0.00025552,2]
[354974858,1740852639336,-500.0,0.00025552,2]
[354974860,1740852639346,-500.0,0.00025552,2]
[354974862,1740852639355,-500.0,0.00025552,2]
[354974864,1740852639365,-200.0,0.00025552,2]
[354974866,1740852639374,-661.33,0.00025552,2]
[354974868,1740852639385,-500.0,0.00025552,2]
[354974870,1740852639396,-1747.31,0.00025552,2]
[354974872,1740852639405,-500.0,0.00025552,2]
[354974874,1740852639415,-500.0,0.00025552,2]
[354974876,1740852639424,-572.68520995,0.00025552,2]
[354974878,1740852639434,-500.0,0.00025552,2]
[354974880,1740852639444,-500.0,0.00025552,2]
[354974882,1740852639453,-500.0,0.00025552,2]
[354974884,1740852639463,-500.0,0.00025552,2]
[354974886,1740852639472,-500.0,0.00025552,2]
[354974888,1740852639481,-692.61,0.00025552,2]
[354974890,1740852639491,-692.61,0.00025552,2]
[354974892,1740852639500,-692.61,0.00025552,2]
[354974894,1740852639511,-692.61,0.00025552,2]
[354974896,1740852639520,-692.61,0.00025552,2]
[354974898,1740852639530,-692.61,0.00025552,2]
[354974900,1740852639539,-692.61,0.00025552,2]
[354974902,1740852639548,-500.0,0.00025552,2]
[354974904,1740852639558,-692.61,0.00025552,2]
[354974906,1740852639568,-692.61,0.00025552,2]
[354974908,1740852639578,-692.61,0.00025552,2]
[354974910,1740852639588,-692.61,0.00025552,2]
[354974912,1740852639598,-692.61,0.00025552,2]
[354974914,1740852639608,-692.61,0.00025552,2]
[354974916,1740852639618,-692.61,0.00025552,2]
[354974918,1740852639628,-500.0,0.00025552,2]
[354974921,1740852639639,-966.23,0.00025552,2]
[354974923,1740852639649,-500.0,0.00025552,2]
[354974925,1740852639658,-551.32,0.00025552,2]
[354974927,1740852639668,-500.0,0.00025552,2]
[354974929,1740852639677,-500.0,0.00025552,2]
[354974931,1740852639686,-500.0,0.00025552,2]
[354974933,1740852639696,-634.14,0.00025552,2]
[354974935,1740852639706,-500.0,0.00025552,2]
[354974937,1740852639715,-1000.0,0.00025552,2]
[354974939,1740852639724,-514.07,0.00025552,2]
[354974941,1740852639734,-500.0,0.00025552,2]
[354974943,1740852639744,-500.0,0.00025552,2]
[354974945,1740852639754,-500.0,0.00025552,2]
[354974947,1740852639763,-1112.78,0.00025552,2]
[354974949,1740852639773,-500.0,0.00025552,2]
[354974951,1740852639783,-500.0,0.00025552,2]
[354974952,1740852639792,-500.0,0.00025552,2]
[354974954,1740852639802,-549.0,0.00025552,2]
[354974957,1740852639812,-500.0,0.00025552,2]
[354974959,1740852639822,-502.61749203,0.00025552,2]
[354974960,1740852639831,-500.0,0.00025552,2]
[354974962,1740852639841,-500.0,0.00025552,2]
[354974964,1740852639850,-500.0,0.00025552,2]
[354974966,1740852639860,-1017.66,0.00025552,2]
[354974968,1740852639869,-500.0,0.00025552,2]
[354974970,1740852639879,-500.0,0.00025552,2]
[354974972,1740852639889,-500.0,0.00025552,2]
[354974974,1740852639898,-1026.48,0.00025552,2]
[354974976,1740852639909,-500.0,0.00025552,2]
[354974978,1740852639919,-700.76,0.00025552,2]
[354974980,1740852639928,-700.76,0.00025552,2]
[354974982,1740852639938,-700.76,0.00025552,2]
[354974984,1740852639948,-700.76,0.00025552,2]
[354974986,1740852639957,-700.76,0.00025552,2]
[354974988,1740852639966,-700.76,0.00025552,2]
[354974990,1740852639976,-700.76,0.00025552,2]
[354974992,1740852639985,-700.76,0.00025552,2]
[354974994,1740852639995,-700.76,0.00025552,2]
[354974996,1740852640004,-700.76,0.00025552,2]
[354974998,1740852640013,-700.76,0.00025552,2]
[354975000,1740852640023,-700.76,0.00025552,2]
[354975002,1740852640032,-700.76,0.00025552,2]
[354975004,1740852640042,-700.76,0.00025552,2]
[354975006,1740852640051,-757.42,0.00025552,2]
[354975008,1740852640061,-500.0,0.00025552,2]
[354975010,1740852640070,-500.0,0.00025552,2]
[354975012,1740852640079,-500.0,0.00025552,2]
[354975014,1740852640089,-500.0,0.00025552,2]
[354975016,1740852640098,-500.0,0.00025552,2]
[354975018,1740852640107,-500.0,0.00025552,2]
[354975020,1740852640117,-500.0,0.00025552,2]
[354975022,1740852640126,-500.0,0.00025552,2]
[354975024,1740852640136,-612.47,0.00025552,2]
[354975027,1740852640145,-500.0,0.00025552,2]
[354975029,1740852640155,-500.0,0.00025552,2]
[354975030,1740852640164,-500.0,0.00025552,2]
[354975033,1740852640180,-1526.17,0.00025552,2]
[354975035,1740852640189,-500.0,0.00025552,2]
[354975037,1740852640199,-500.0,0.00025552,2]
[354975039,1740852640208,-500.0,0.00025552,2]
[354975041,1740852640218,-500.0,0.00025552,2]
[354975043,1740852640229,-665.61,0.00025552,2]
[354975045,1740852640241,-1180.33,0.00025552,2]
[354975047,1740852640250,-514.97808468,0.00025552,2]
[354975049,1740852640259,-209.54869711,0.00025552,2]
[354975051,1740852640271,-616.87498064,0.00025552,2]
[354975053,1740852640280,-500.0,0.00025552,2]
[354975055,1740852640290,-306.26038059,0.00025552,2]
[354975057,1740852640300,-500.0,0.00025552,2]
[354975059,1740852640312,-500.0,0.00025552,2]
[354975061,1740852640322,-500.0,0.00025552,2]
[354975063,1740852640332,-500.0,0.00025552,2]
[354975065,1740852640342,-500.0,0.00025552,2]
[354975067,1740852640351,-500.0,0.00025552,2]
[354975069,1740852640361,-500.0,0.00025552,2]
[354975071,1740852640371,-500.0,0.00025552,2]
[354975073,1740852640380,-500.0,0.00025552,2]
[354975075,1740852640389,-500.0,0.00025552,2]
[354975077,1740852640398,-500.0,0.00025552,2]
[354975079,1740852640408,-820.11,0.00025552,2]
[354975081,1740852640418,-500.0,0.00025552,2]
[354975083,1740852640427,-500.0,0.00025552,2]
[354975085,1740852640438,-500.0,0.00025552,2]
[354975087,1740852640447,-500.0,0.00025552,2]
[354975089,1740852640457,-1995.87,0.00025552,2]
[354975091,1740852640466,-500.0,0.00025552,2]
[354975093,1740852640476,-500.0,0.00025552,2]
[354975095,1740852640485,-500.0,0.00025552,2]
[354975097,1740852640495,-500.0,0.00025552,2]
[354975099,1740852640504,-500.0,0.00025552,2]
[354975101,1740852640514,-894.55,0.00025552,2]
[354975103,1740852640524,-500.0,0.00025552,2]
[354975105,1740852640533,-500.0,0.00025552,2]
[354975107,1740852640542,-500.0,0.00025552,2]
[354975109,1740852640552,-189724.92,0.00025552,2]
[354975111,1740852640561,-505.23536334,0.00025552,2]
[354975113,1740852640570,-951.89,0.00025552,2]
[354975115,1740852640580,-500.0,0.00025552,2]
[354975116,1740852640589,-500.0,0.00025552,2]
[354975119,1740852640600,-500.0,0.00025552,2]
[354975121,1740852640611,-500.0,0.00025552,2]
[354975122,1740852640620,-500.0,0.00025552,2]
[354975125,1740852640630,-503.22028765,0.00025552,2]
[354975126,1740852640639,-500.0,0.00025552,2]
[354975129,1740852640650,-500.0,0.00025552,2]
[354975131,1740852640660,-3641.32,0.00025552,2]
[354975133,1740852640669,-500.0,0.00025552,2]
[354975135,1740852640679,-500.0,0.00025552,2]
[354975137,1740852640689,-359.70484199,0.00025552,2]
[354975139,1740852640699,-500.0,0.00025552,2]
[354975141,1740852640709,-1716.03,0.00025552,2]
[354975143,1740852640719,-9862.53,0.00025552,2]
[354975145,1740852640729,-500.0,0.00025552,2]
[354975147,1740852640739,-500.0,0.00025552,2]
[354975149,1740852640749,-500.0,0.00025552,2]
[354975151,1740852640759,-500.0,0.00025552,2]
[354975153,1740852640770,-2034.22,0.00025552,2]
[354975155,1740852640779,-500.0,0.00025552,2]
[354975157,1740852640789,-500.0,0.00025552,2]
[354975159,1740852640799,-500.0,0.00025552,2]
[354975161,1740852640809,-2482.06,0.00025552,2]
[354975164,1740852640819,-642.54,0.00025552,2]
[354975166,1740852640830,-500.0,0.00025552,2]
[354975168,1740852640840,-500.0,0.00025552,2]
[354975170,1740852640850,-500.0,0.00025552,2]
[354975172,1740852640860,-4956.02,0.00025552,2]
[354975174,1740852640869,-561.56,0.00025552,2]
[354975176,1740852640879,-500.0,0.00025552,2]
[354975178,1740852640889,-973.64,0.00025552,2]
[354975180,1740852640899,-971.94,0.00025552,2]
[354975182,1740852640909,-500.0,0.00025552,2]
[354975184,1740852640919,-1823.11,0.00025552,2]
[354975186,1740852640929,-550.05,0.00025552,2]
[354975188,1740852640939,-1521.45,0.00025552,2]
[354975190,1740852640950,-1346.89,0.00025552,2]
[354975192,1740852640960,-539.15,0.00025552,2]
[354975194,1740852640970,-518.11,0.00025552,2]
[354975196,1740852640980,-1340.45,0.00025552,2]
[354975198,1740852640990,-1137.2,0.00025552,2]
[354975200,1740852641000,-500.0,0.00025552,2]
[354975202,1740852641010,-500.0,0.00025552,2]
[354975203,1740852641021,-500.0,0.00025552,2]
[354975204,1740852641032,-1694.14,0.00025552,2]
[354975206,1740852641042,-739.07,0.00025552,2]
[354975207,1740852641052,-500.0,0.00025552,2]
[354975209,1740852641062,-504.05068478,0.00025552,2]
[354975211,1740852641072,-1183.31,0.00025552,2]
[354975213,1740852641082,-1183.31,0.00025552,2]
[354975215,1740852641092,-500.0,0.00025552,2]
[354975217,1740852641102,-1183.31,0.00025552,2]
[354975219,1740852641112,-1183.31,0.00025552,2]
[354975221,1740852641122,-1183.31,0.00025552,2]
[354975223,1740852641132,-1183.31,0.00025552,2]
[354975225,1740852641142,-1183.31,0.00025552,2]
[354975227,1740852641152,-1183.31,0.00025552,2]
[354975229,1740852641162,-1183.31,0.00025552,2]
[354975231,1740852641172,-1183.31,0.00025552,2]
[354975234,1740852641183,-1183.31,0.00025552,2]
[354975236,1740852641193,-1183.31,0.00025552,2]
[354975238,1740852641203,-500.0,0.00025552,2]
[354975240,1740852641213,-1183.31,0.00025552,2]
[354975242,1740852641223,-1183.31,0.00025552,2]
[354975244,1740852641238,-500.0,0.00025552,2]
[354975246,1740852641249,-639.4,0.00025552,2]
[354975248,1740852641260,-500.0,0.00025552,2]
[354975250,1740852641271,-500.0,0.00025552,2]
[354975252,1740852641282,-500.0,0.00025552,2]
[354975254,1740852641292,-500.0,0.00025552,2]
[354975256,1740852641302,-500.0,0.00025552,2]
[354975258,1740852641313,-500.0,0.00025552,2]
[354975260,1740852641324,-1048.8,0.00025552,2]
[354975262,1740852641333,-500.0,0.00025552,2]
[354975264,1740852641344,-500.0,0.00025552,2]
[354975266,1740852641354,-500.0,0.00025552,2]
[354975269,1740852641368,-500.0,0.00025552,2]
[354975271,1740852641378,-500.0,0.00025552,2]
[354975273,1740852641388,-500.0,0.00025552,2]
[354975275,1740852641399,-615.80236531,0.00025552,2]
[354975277,1740852641410,-500.0,0.00025552,2]
[354975278,1740852641420,-500.0,0.00025552,2]
[354975280,1740852641429,-500.0,0.00025552,2]
[354975282,1740852641439,-500.0,0.00025552,2]
[354975284,1740852641449,-500.0,0.00025552,2]
[354975286,1740852641459,-257.09457532,0.00025552,2]
[354975288,1740852641469,-500.0,0.00025552,2]
[354975290,1740852641479,-500.0,0.00025552,2]
[354975292,1740852641489,-605.31,0.00025552,2]
[354975294,1740852641499,-500.0,0.00025552,2]
[354975296,1740852641509,-513.72178489,0.00025552,2]
[354975298,1740852641519,-500.0,0.00025552,2]
[354975300,1740852641529,-1159.04,0.00025552,2]
[354975302,1740852641539,-657.27,0.00025552,2]
[354975304,1740852641549,-500.0,0.00025552,2]
[354975306,1740852641559,-500.0,0.00025552,2]
[354975308,1740852641569,-535.9566018,0.00025552,2]
[354975310,1740852641579,-500.0,0.00025552,2]
[354975312,1740852641589,-500.0,0.00025552,2]
[354975314,1740852641599,-500.0,0.00025552,2]
[354975316,1740852641610,-39446.22,0.00025552,2]
[354975318,1740852641619,-509.43753605,0.00025552,2]
[354975320,1740852641629,-500.0,0.00025552,2]
[354975322,1740852641639,-500.0,0.00025552,2]
[354975324,1740852641648,-500.0,0.00025552,2]
[354975326,1740852641658,-893.58,0.00025552,2]
[354975328,1740852641667,-500.0,0.00025552,2]
[354975330,1740852641677,-1360.23,0.00025552,2]
[354975332,1740852641687,-500.0,0.00025552,2]
[354975334,1740852641696,-502.22558594,0.00025552,2]
[354975336,1740852641706,-500.0,0.00025552,2]
[354975338,1740852641716,-682.73,0.00025552,2]
[354975340,1740852641727,-500.0,0.00025552,2]
[354975342,1740852641736,-395.39839817,0.00025552,120]
[354975344,1740852641746,-1972.1,0.00025552,2]
[354975346,1740852641756,-500.0,0.00025552,2]
[354975348,1740852641766,-500.0,0.00025552,2]
[354975350,1740852641776,-500.0,0.00025552,2]
[354975352,1740852641786,-500.0,0.00025552,2]
[354975354,1740852641795,-500.0,0.00025552,2]
[354975356,1740852641805,-505.32427382,0.00025552,2]
[354975358,1740852641816,-500.0,0.00025552,2]
[354975360,1740852641825,-1100.88,0.00025552,2]
[354975362,1740852641835,-500.0,0.00025552,2]
[354975364,1740852641845,-500.0,0.00025552,2]
[354975366,1740852641855,-14683.36,0.00025552,2]
[354975368,1740852641865,-500.0,0.00025552,2]
[354975370,1740852641876,-500.0,0.00025552,2]
[354975372,1740852641886,-1569.74,0.00025552,2]
[354975374,1740852641896,-500.0,0.00025552,2]
[354975376,1740852641906,-500.0,0.00025552,2]
[354975378,1740852641915,-500.0,0.00025552,2]
[354975380,1740852641925,-500.0,0.00025552,2]
[354975382,1740852641935,-763.87,0.00025552,2]
[354975384,1740852641945,-500.0,0.00025552,2]
[354975386,1740852641955,-500.0,0.00025552,2]
[354975388,1740852641966,-1612.88,0.00025552,2]
[354975390,1740852641976,-711.0,0.00025552,2]
[354975392,1740852641986,-500.0,0.00025552,2]
[354975394,1740852641996,-748.59,0.00025552,2]
[354975396,1740852642007,-500.0,0.00025552,2]
[354975398,1740852642017,-500.0,0.00025552,2]
[354975400,1740852642027,-979.62,0.00025552,2]
[354975402,1740852642037,-500.0,0.00025552,2]
[354975404,1740852642047,-500.0,0.00025552,2]
[354975406,1740852642057,-500.0,0.00025552,2]
[354975408,1740852642066,-500.0,0.00025552,2]
[354975410,1740852642076,-1200.7,0.00025552,2]
[354975412,1740852642086,-500.0,0.00025552,2]
[354975414,1740852642096,-500.0,0.00025552,2]
[354975416,1740852642106,-989.41,0.00025552,2]
[354975418,1740852642116,-767.01,0.00025552,2]
[354975420,1740852642127,-500.0,0.00025552,2]
[354975422,1740852642136,-5207.94,0.00025552,2]
[354975424,1740852642146,-249.0502652,0.00025552,2]
[354975426,1740852642156,-500.0,0.00025552,2]
[354975427,1740852642166,-500.0,0.00025552,2]
[354975429,1740852642176,-500.0,0.00025552,2]
[354975432,1740852642186,-500.0,0.00025552,2]
[354975434,1740852642197,-500.0,0.00025552,2]
[354975436,1740852642207,-500.0,0.00025552,2]
[354975438,1740852642217,-708.97,0.00025552,2]
[354975440,1740852642230,-500.0,0.00025552,2]
[354975442,1740852642242,-917.66,0.00025552,2]
[354975444,1740852642252,-500.0,0.00025553,2]
[354975446,1740852642263,-500.0,0.00025553,2]
[354975448,1740852642274,-192.21601703,0.00025553,2]
[354975450,1740852642284,-500.0,0.00025553,2]
[354975452,1740852642294,-500.0,0.00025553,2]
[354975454,1740852642304,-500.0,0.00025553,2]
[354975456,1740852642315,-500.0,0.00025553,2]
[354975458,1740852642325,-508.73510152,0.00025553,2]
[354975460,1740852642337,-500.0,0.00025553,2]
[354975462,1740852642351,-500.0,0.00025553,2]
[354975464,1740852642361,-512.9240435,0.00025553,2]
[354975466,1740852642371,-902.31,0.00025553,2]
[354975468,1740852642381,-500.0,0.00025553,2]
[354975470,1740852642392,-500.0,0.00025553,2]
[354975472,1740852642402,-500.0,0.00025553,2]
[354975474,1740852642412,-500.0,0.00025553,2]
[354975476,1740852642423,-1276.48,0.00025553,2]
[354975478,1740852642433,-500.0,0.00025553,2]
[354975480,1740852642443,-500.0,0.00025553,2]
[354975482,1740852642453,-500.0,0.00025553,2]
[354975484,1740852642464,-500.0,0.00025553,2]
[354975486,1740852642474,-500.0,0.00025553,2]
[354975488,1740852642484,-500.0,0.00025553,2]
[354975490,1740852642494,-500.0,0.00025553,2]
[354975492,1740852642504,-343.43110475,0.00025553,2]
[354975494,1740852642513,-500.0,0.00025553,2]
[354975496,1740852642523,-614.75925659,0.00025553,2]
[354975498,1740852642533,-500.0,0.00025553,2]
[354975500,1740852642544,-497.16,0.00025553,2]
[354975502,1740852642553,-832.83,0.00025553,2]
[354975504,1740852642564,-505.7901758,0.00025553,2]
[354975506,1740852642574,-500.0,0.00025553,2]
[354975508,1740852642584,-500.0,0.00025553,2]
[354975511,1740852642596,-500.0,0.00025553,2]
[354975513,1740852642607,-503.79382611,0.00025553,2]
[354975515,1740852642617,-849.63,0.00025553,2]
[354975517,1740852642628,-500.0,0.00025553,2]
[354975519,1740852642638,-365.24870982,0.00025553,2]